[Event "FIDE World Rapid Chess Championship 2021"]
[White "Ivic, Velimir"]
[Black "Amin, Bassem"]
[WhiteFideId "950122"]
[BlackFideId "10601457"]
[WhiteElo "2357"]
[BlackElo "2614"]
[Result "0-1"]
[Round "07"]
[TimeControl "900+10"]
[Date "2021.12.27"]
[WhiteClock "0:00:14"]
[BlackClock "0:02:45"]

1. e4 {[%clk 0:15:00]}  e5 {[%clk 0:15:00]} 2. Nf3 {[%clk 0:15:00]}  Nc6 {[%clk 0:15:00]} 3. Bb5 {[%clk 0:15:00]}  a6 {[%clk 0:15:00]} 4. Ba4 {[%clk 0:15:00]}  Nf6 {[%clk 0:15:00]} 5. O-O {[%clk 0:15:00]}  Be7 {[%clk 0:15:00]} 6. d3 {[%clk 0:15:00]}  d6 {[%clk 0:15:00]} 7. c3 {[%clk 0:15:00]}  O-O {[%clk 0:15:00]} 8. Nbd2 {[%clk 0:15:56]}  Re8 {[%clk 0:16:03]} 9. Re1 {[%clk 0:16:04]}  Bf8 {[%clk 0:16:03]} 10. Nf1 {[%clk 0:16:04]}  b5 {[%clk 0:16:03]} 11. Bc2 {[%clk 0:16:04]}  Bb7 {[%clk 0:16:03]} 12. Ng3 {[%clk 0:16:04]}  g6 {[%clk 0:16:03]} 13. d4 {[%clk 0:16:04]}  exd4 {[%clk 0:16:03]} 14. cxd4 {[%clk 0:16:04]}  Nb4 {[%clk 0:16:03]} 15. Bb1 {[%clk 0:16:04]}  c5 {[%clk 0:16:03]} 16. a3 {[%clk 0:16:04]}  Nc6 {[%clk 0:16:03]} 17. d5 {[%clk 0:16:04]}  Na5 {[%clk 0:16:03]} 18. b4 {[%clk 0:16:04]}  cxb4 {[%clk 0:12:24]} 19. axb4 {[%clk 0:13:21]}  Nc4 {[%clk 0:12:24]} 20. Ra2 {[%clk 0:13:21]}  Bg7 {[%clk 0:12:24]} 21. Rae2 {[%clk 0:13:21]}  Nd7 {[%clk 0:12:05]} 22. Nd2 {[%clk 0:12:04]}  a5 {[%clk 0:11:14]} 23. bxa5 {[%clk 0:12:04]}  Qxa5 {[%clk 0:11:14]} 24. Ngf1 {[%clk 0:07:47]}  Nc5 {[%clk 0:10:58]} 25. Ne3 {[%clk 0:07:47]}  Qa1 {[%clk 0:10:32]} 26. Nexc4 {[%clk 0:06:32]}  bxc4 {[%clk 0:08:28]} 27. Bc2 {[%clk 0:06:32]}  Ba6 {[%clk 0:08:36]} 28. Re3 {[%clk 0:02:32]}  Nd3 {[%clk 0:07:28]} 29. Bxd3 {[%clk 0:00:38]}  cxd3 {[%clk 0:07:28]} 30. Nf3 {[%clk 0:00:38]}  Bh6 {[%clk 0:07:28]} 31. Qd2 {[%clk 0:00:38]}  Rec8 {[%clk 0:07:01]} 32. Bb2 {[%clk 0:00:17]}  Bxe3 {[%clk 0:07:01]} 33. fxe3 {[%clk 0:00:17]}  Qa4 {[%clk 0:07:01]} 34. Nd4 {[%clk 0:00:17]}  Rab8 {[%clk 0:04:47]} 35. Nc6 {[%clk 0:00:33]}  Qxe4 {[%clk 0:04:47]} 36. Qc3 {[%clk 0:00:33]}  Rxb2 {[%clk 0:04:47]} 37. Qxb2 {[%clk 0:00:33]}  Re8 {[%clk 0:04:47]} 38. Qd2 {[%clk 0:00:33]}  Qxd5 {[%clk 0:02:45]} 39. Nd4 {[%clk 0:00:14]}  Qe4 {[%clk 0:02:45]} 40. Ra1 {[%clk 0:00:14]}  Bc4 {[%clk 0:02:45]} 41. Re1 {[%clk 0:00:14]}  Ra8 {[%clk 0:02:45]} 42. Nf3 {[%clk 0:00:14]}  Bd5 {[%clk 0:02:45]} 43. Rd1 {[%clk 0:00:14]}  Ra2 {[%clk 0:02:45]} 0-1


[Site "http://www.Chess.com"]

[Event "FIDE World Rapid Chess Championship 2021"]
[White "Kosakowski, Jakub"]
[Black "Chigaev, Maksim"]
[WhiteFideId "1185080"]
[BlackFideId "4108116"]
[WhiteElo "2304"]
[BlackElo "2605"]
[Result "0-1"]
[Round "07"]
[TimeControl "900+10"]
[Date "2021.12.27"]
[WhiteClock "0:00:40"]
[BlackClock "0:04:18"]

1. e4 {[%clk 0:15:00]}  c5 {[%clk 0:15:00]} 2. Nf3 {[%clk 0:15:00]}  d6 {[%clk 0:15:00]} 3. d4 {[%clk 0:15:00]}  cxd4 {[%clk 0:15:00]} 4. Nxd4 {[%clk 0:15:00]}  Nf6 {[%clk 0:15:00]} 5. Nc3 {[%clk 0:15:00]}  a6 {[%clk 0:15:00]} 6. h3 {[%clk 0:15:00]}  e6 {[%clk 0:15:00]} 7. g4 {[%clk 0:15:00]}  h6 {[%clk 0:15:00]} 8. Bg2 {[%clk 0:15:00]}  Be7 {[%clk 0:15:00]} 9. Be3 {[%clk 0:15:20]}  Nc6 {[%clk 0:16:14]} 10. Qe2 {[%clk 0:15:20]}  Nxd4 {[%clk 0:16:20]} 11. Bxd4 {[%clk 0:14:50]}  e5 {[%clk 0:16:20]} 12. Be3 {[%clk 0:14:50]}  Be6 {[%clk 0:16:20]} 13. O-O {[%clk 0:15:04]}  Rc8 {[%clk 0:13:58]} 14. Qd2 {[%clk 0:10:42]}  O-O {[%clk 0:13:34]} 15. Kh1 {[%clk 0:10:42]}  Nd7 {[%clk 0:13:06]} 16. Nd5 {[%clk 0:08:37]}  Bxd5 {[%clk 0:10:31]} 17. Qxd5 {[%clk 0:08:37]}  Rc6 {[%clk 0:10:31]} 18. Rad1 {[%clk 0:08:37]}  Bg5 {[%clk 0:10:31]} 19. Qb3 {[%clk 0:06:30]}  Bxe3 {[%clk 0:10:44]} 20. fxe3 {[%clk 0:04:41]}  Qb6 {[%clk 0:09:27]} 21. Qxb6 {[%clk 0:04:41]}  Rxb6 {[%clk 0:09:27]} 22. b3 {[%clk 0:04:41]}  Rc8 {[%clk 0:09:27]} 23. Rf2 {[%clk 0:04:41]}  Rc3 {[%clk 0:08:46]} 24. Rfd2 {[%clk 0:04:00]}  Kf8 {[%clk 0:08:46]} 25. Re2 {[%clk 0:03:31]}  Ke7 {[%clk 0:07:55]} 26. Kg1 {[%clk 0:03:31]}  Rbc6 {[%clk 0:07:55]} 27. Rdd2 {[%clk 0:03:31]}  a5 {[%clk 0:07:55]} 28. Kf1 {[%clk 0:03:31]}  Nc5 {[%clk 0:06:36]} 29. Ke1 {[%clk 0:01:25]}  b5 {[%clk 0:06:36]} 30. Rd5 {[%clk 0:01:25]}  b4 {[%clk 0:06:36]} 31. Kd1 {[%clk 0:01:25]}  a4 {[%clk 0:06:36]} 32. h4 {[%clk 0:00:19]}  axb3 {[%clk 0:05:55]} 33. axb3 {[%clk 0:00:19]}  Ra6 {[%clk 0:05:55]} 34. Ke1 {[%clk 0:00:19]}  Ra2 {[%clk 0:05:55]} 35. Rdd2 {[%clk 0:00:19]}  g5 {[%clk 0:04:18]} 36. hxg5 {[%clk 0:00:40]}  hxg5 {[%clk 0:04:18]} 37. Bf3 {[%clk 0:00:40]}  Na6 {[%clk 0:04:18]} 38. Kf2 {[%clk 0:00:40]}  Nc7 {[%clk 0:04:18]} 39. Bg2 {[%clk 0:00:40]}  Nb5 {[%clk 0:04:18]} 40. Bf3 {[%clk 0:00:40]}  Na3 {[%clk 0:04:18]} 41. Kg3 {[%clk 0:00:40]}  Raxc2 {[%clk 0:04:18]} 0-1


[Site "http://www.Chess.com"]

[Event "FIDE World Rapid Chess Championship 2021"]
[White "Erdos, Viktor"]
[Black "Costachi, Mihnea"]
[WhiteFideId "719978"]
[BlackFideId "1217518"]
[WhiteElo "2601"]
[BlackElo "2443"]
[Result "1-0"]
[Round "07"]
[TimeControl "900+10"]
[Date "2021.12.27"]
[WhiteClock "0:01:09"]
[BlackClock "0:01:41"]

1. e4 {[%clk 0:15:00]}  e5 {[%clk 0:15:00]} 2. Nf3 {[%clk 0:15:00]}  Nc6 {[%clk 0:15:00]} 3. Bc4 {[%clk 0:15:00]}  Bc5 {[%clk 0:15:00]} 4. c3 {[%clk 0:15:00]}  Nf6 {[%clk 0:15:00]} 5. d4 {[%clk 0:15:00]}  exd4 {[%clk 0:15:00]} 6. e5 {[%clk 0:15:00]}  d5 {[%clk 0:15:00]} 7. Bb5 {[%clk 0:15:00]}  Ne4 {[%clk 0:15:00]} 8. cxd4 {[%clk 0:15:00]}  Bb6 {[%clk 0:15:00]} 9. Nc3 {[%clk 0:15:00]}  O-O {[%clk 0:15:00]} 10. Be3 {[%clk 0:16:53]}  Bg4 {[%clk 0:16:12]} 11. h3 {[%clk 0:16:53]}  Bh5 {[%clk 0:16:12]} 12. Qc2 {[%clk 0:16:53]}  Bg6 {[%clk 0:16:12]} 13. Qb3 {[%clk 0:16:53]}  Ne7 {[%clk 0:16:12]} 14. O-O {[%clk 0:16:53]}  c6 {[%clk 0:16:12]} 15. Bd3 {[%clk 0:16:53]}  Nd2 {[%clk 0:16:12]} 16. Nxd2 {[%clk 0:16:53]}  Bxd3 {[%clk 0:16:12]} 17. Rfe1 {[%clk 0:16:53]}  Bg6 {[%clk 0:14:47]} 18. Na4 {[%clk 0:17:21]}  Nf5 {[%clk 0:14:47]} 19. Nf3 {[%clk 0:17:21]}  Nxe3 {[%clk 0:14:47]} 20. Rxe3 {[%clk 0:17:21]}  Re8 {[%clk 0:12:48]} 21. Qc3 {[%clk 0:16:39]}  Ba5 {[%clk 0:12:21]} 22. b4 {[%clk 0:13:42]}  Bb6 {[%clk 0:12:21]} 23. Qb2 {[%clk 0:13:45]}  f6 {[%clk 0:07:56]} 24. Rae1 {[%clk 0:10:24]}  fxe5 {[%clk 0:05:21]} 25. Nxe5 {[%clk 0:09:37]}  Qd6 {[%clk 0:03:28]} 26. Nc5 {[%clk 0:09:37]}  Rab8 {[%clk 0:02:44]} 27. Ncd7 {[%clk 0:09:07]}  Rbd8 {[%clk 0:00:54]} 28. Nxb6 {[%clk 0:09:07]}  axb6 {[%clk 0:00:54]} 29. a4 {[%clk 0:09:07]}  Rf8 {[%clk 0:00:54]} 30. a5 {[%clk 0:09:07]}  b5 {[%clk 0:00:54]} 31. Rc1 {[%clk 0:05:08]}  Ra8 {[%clk 0:00:42]} 32. Ra3 {[%clk 0:05:08]}  Be8 {[%clk 0:00:42]} 33. Nd3 {[%clk 0:05:08]}  Rc8 {[%clk 0:00:42]} 34. a6 {[%clk 0:04:01]}  bxa6 {[%clk 0:00:21]} 35. Rxa6 {[%clk 0:04:01]}  Qf6 {[%clk 0:00:21]} 36. Ne5 {[%clk 0:04:01]}  Qf4 {[%clk 0:00:21]} 37. Ra3 {[%clk 0:04:01]}  Qh4 {[%clk 0:00:21]} 38. Rf3 {[%clk 0:04:01]}  Rxf3 {[%clk 0:00:21]} 39. Nxf3 {[%clk 0:04:01]}  Qf4 {[%clk 0:00:21]} 40. Ne5 {[%clk 0:04:01]}  Ra8 {[%clk 0:00:21]} 41. Re1 {[%clk 0:04:01]}  Qf6 {[%clk 0:00:21]} 42. Re3 {[%clk 0:03:08]}  Bg6 {[%clk 0:00:31]} 43. Rc3 {[%clk 0:03:08]}  Be8 {[%clk 0:00:31]} 44. Rf3 {[%clk 0:03:08]}  Qh4 {[%clk 0:00:31]} 45. Qc3 {[%clk 0:03:08]}  Qe7 {[%clk 0:00:31]} 46. Nxc6 {[%clk 0:01:51]}  Bxc6 {[%clk 0:00:31]} 47. Qxc6 {[%clk 0:01:51]}  Rd8 {[%clk 0:00:31]} 48. Qxb5 {[%clk 0:01:51]}  Qe4 {[%clk 0:00:31]} 49. Qb6 {[%clk 0:01:51]}  Rc8 {[%clk 0:00:31]} 50. Qb7 {[%clk 0:01:51]}  Rc1+ {[%clk 0:00:31]} 51. Kh2 {[%clk 0:01:51]}  Qe6 {[%clk 0:00:31]} 52. Rg3 {[%clk 0:01:51]}  g6 {[%clk 0:00:31]} 53. Re3 {[%clk 0:01:51]}  Qd6+ {[%clk 0:00:31]} 54. Re5 {[%clk 0:01:09]}  Rc4 {[%clk 0:00:23]} 55. b5 {[%clk 0:01:09]}  Rxd4 {[%clk 0:00:23]} 56. Qa8+ {[%clk 0:01:09]}  Kg7 {[%clk 0:00:23]} 57. Qa7+ {[%clk 0:01:09]}  Kf6 {[%clk 0:00:23]} 58. Qxd4 {[%clk 0:01:09]}  Qxe5+ {[%clk 0:00:23]} 59. Qxe5+ {[%clk 0:01:09]}  Kxe5 {[%clk 0:00:23]} 60. f4+ {[%clk 0:01:09]}  Kd6 {[%clk 0:00:23]} 61. g4 {[%clk 0:01:09]}  Kc5 {[%clk 0:00:23]} 62. f5 {[%clk 0:01:09]}  gxf5 {[%clk 0:00:23]} 63. gxf5 {[%clk 0:01:09]}  d4 {[%clk 0:00:23]} 64. f6 {[%clk 0:01:09]}  Kd6 {[%clk 0:00:23]} 65. Kg2 {[%clk 0:01:09]}  Ke6 {[%clk 0:00:23]} 66. b6 {[%clk 0:01:09]}  d3 {[%clk 0:00:23]} 67. Kf2 {[%clk 0:01:09]}  d2 {[%clk 0:00:23]} 68. Ke2 {[%clk 0:01:09]}  Kd5 {[%clk 0:01:41]} 1-0


[Site "http://www.Chess.com"]

[Event "FIDE World Rapid Chess Championship 2021"]
[White "Sargsyan, Shant"]
[Black "Timofeev, Artyom"]
[WhiteFideId "13306766"]
[BlackFideId "4140419"]
[WhiteElo "2344"]
[BlackElo "2591"]
[Result "1/2-1/2"]
[Round "07"]
[TimeControl "900+10"]
[Date "2021.12.27"]
[WhiteClock "0:00:26"]
[BlackClock "0:00:42"]

1. d4 {[%clk 0:15:00]}  d5 {[%clk 0:15:00]} 2. c4 {[%clk 0:15:00]}  dxc4 {[%clk 0:15:00]} 3. Nf3 {[%clk 0:15:00]}  Nf6 {[%clk 0:15:00]} 4. e3 {[%clk 0:15:00]}  e6 {[%clk 0:15:00]} 5. Bxc4 {[%clk 0:15:00]}  c5 {[%clk 0:15:00]} 6. O-O {[%clk 0:15:00]}  a6 {[%clk 0:15:00]} 7. b3 {[%clk 0:15:00]}  cxd4 {[%clk 0:15:47]} 8. Nxd4 {[%clk 0:15:34]}  Bd6 {[%clk 0:15:47]} 9. Bb2 {[%clk 0:15:34]}  O-O {[%clk 0:15:47]} 10. Nd2 {[%clk 0:15:34]}  Qe7 {[%clk 0:15:47]} 11. Bd3 {[%clk 0:15:34]}  e5 {[%clk 0:14:59]} 12. Nf5 {[%clk 0:14:17]}  Bxf5 {[%clk 0:14:59]} 13. Bxf5 {[%clk 0:14:17]}  Nc6 {[%clk 0:14:59]} 14. Nc4 {[%clk 0:14:17]}  Bc5 {[%clk 0:14:59]} 15. Qf3 {[%clk 0:14:17]}  g6 {[%clk 0:15:08]} 16. Be4 {[%clk 0:12:19]}  Nxe4 {[%clk 0:13:41]} 17. Qxe4 {[%clk 0:11:24]}  Rfe8 {[%clk 0:13:41]} 18. Rfd1 {[%clk 0:11:24]}  Rad8 {[%clk 0:13:41]} 19. Rac1 {[%clk 0:11:24]}  Qe6 {[%clk 0:12:33]} 20. Rxd8 {[%clk 0:10:19]}  Rxd8 {[%clk 0:09:41]} 21. Nxe5 {[%clk 0:10:19]}  Rd2 {[%clk 0:09:50]} 22. Bc3 {[%clk 0:07:39]}  Rxa2 {[%clk 0:07:00]} 23. h3 {[%clk 0:05:05]}  Ba3 {[%clk 0:07:06]} 24. Rb1 {[%clk 0:04:55]}  Bd6 {[%clk 0:04:27]} 25. Ng4 {[%clk 0:01:59]}  Qxe4 {[%clk 0:04:27]} 26. Nf6+ {[%clk 0:01:59]}  Kf8 {[%clk 0:04:27]} 27. Nxe4 {[%clk 0:01:59]}  Be7 {[%clk 0:04:27]} 28. Nf6 {[%clk 0:01:59]}  h5 {[%clk 0:04:27]} 29. Nd5 {[%clk 0:01:59]}  f5 {[%clk 0:03:30]} 30. Rd1 {[%clk 0:01:41]}  Kf7 {[%clk 0:03:30]} 31. g3 {[%clk 0:00:00]}  Ra3 {[%clk 0:02:48]} 32. Rb1 {[%clk 0:00:00]}  Bd6 {[%clk 0:02:48]} 33. Kg2 {[%clk 0:00:00]}  Be5 {[%clk 0:02:48]} 34. Be1 {[%clk 0:00:00]}  Ke6 {[%clk 0:01:10]} 35. Nf4+ {[%clk 0:00:06]}  Bxf4 {[%clk 0:01:10]} 36. gxf4 {[%clk 0:00:06]}  a5 {[%clk 0:01:10]} 37. Kg3 {[%clk 0:00:06]}  b5 {[%clk 0:01:10]} 38. Kh4 {[%clk 0:00:06]}  b4 {[%clk 0:01:10]} 39. Kg5 {[%clk 0:00:06]}  Kf7 {[%clk 0:01:10]} 40. Rc1 {[%clk 0:00:06]}  Ne7 {[%clk 0:01:10]} 41. Rc5 {[%clk 0:00:06]}  Ra2 {[%clk 0:00:32]} 42. Rc1 {[%clk 0:00:03]}  Re2 {[%clk 0:00:32]} 43. Kh4 {[%clk 0:00:03]}  Nd5 {[%clk 0:00:32]} 44. Kg3 {[%clk 0:00:03]}  Nf6 {[%clk 0:00:32]} 45. Kf3 {[%clk 0:00:03]}  Rb2 {[%clk 0:00:32]} 46. Rc7+ {[%clk 0:00:03]}  Ke8 {[%clk 0:00:32]} 47. Ra7 {[%clk 0:00:03]}  Rxb3 {[%clk 0:00:32]} 48. Rxa5 {[%clk 0:00:03]}  Rb1 {[%clk 0:00:32]} 49. Ke2 {[%clk 0:00:03]}  Ne4 {[%clk 0:00:32]} 50. Rb5 {[%clk 0:00:03]}  Rb2+ {[%clk 0:00:32]} 51. Kd3 {[%clk 0:00:14]}  Nxf2+ {[%clk 0:00:47]} 52. Bxf2 {[%clk 0:00:14]}  Rxf2 {[%clk 0:00:47]} 53. Rxb4 {[%clk 0:00:14]}  Rh2 {[%clk 0:00:47]} 54. Kd4 {[%clk 0:00:14]}  Rxh3 {[%clk 0:00:47]} 55. Ke5 {[%clk 0:00:14]}  Rxe3+ {[%clk 0:00:47]} 56. Kf6 {[%clk 0:00:14]}  Rg3 {[%clk 0:00:47]} 57. Ke6 {[%clk 0:00:14]}  Kd8 {[%clk 0:00:47]} 58. Rb7 {[%clk 0:00:14]}  h4 {[%clk 0:00:47]} 59. Rd7+ {[%clk 0:00:14]}  Kc8 {[%clk 0:00:47]} 60. Rh7 {[%clk 0:00:14]}  h3 {[%clk 0:00:47]} 61. Ke5 {[%clk 0:00:14]}  Kd8 {[%clk 0:00:47]} 62. Kd6 {[%clk 0:00:14]}  Rd3+ {[%clk 0:00:53]} 63. Ke6 {[%clk 0:00:31]}  Kc8 {[%clk 0:00:53]} 64. Kf6 {[%clk 0:00:31]}  Rg3 {[%clk 0:00:53]} 65. Ke5 {[%clk 0:00:31]}  Kb8 {[%clk 0:00:53]} 66. Kd4 {[%clk 0:00:31]}  Kc8 {[%clk 0:00:53]} 67. Ke5 {[%clk 0:00:31]}  Kd8 {[%clk 0:00:53]} 68. Kd6 {[%clk 0:00:31]}  Kc8 {[%clk 0:00:53]} 69. Ke5 {[%clk 0:00:31]}  Rf3 {[%clk 0:00:53]} 70. Rh6 {[%clk 0:00:31]}  Re3+ {[%clk 0:00:53]} 71. Kf6 {[%clk 0:00:26]}  Rg3 {[%clk 0:00:42]} 72. Rh7 {[%clk 0:00:26]}  g5 {[%clk 0:00:42]} 73. Kxf5 {[%clk 0:00:26]}  g4 {[%clk 0:00:42]} 74. Kg5 {[%clk 0:00:26]}  Rg2 {[%clk 0:00:42]} 75. f5 {[%clk 0:00:26]}  h2 {[%clk 0:00:42]} 76. f6 {[%clk 0:00:26]}  g3 {[%clk 0:00:42]} 77. Kg4 {[%clk 0:00:26]}  Rf2 {[%clk 0:00:42]} 78. Kxg3 {[%clk 0:00:26]}  Rxf6 {[%clk 0:00:42]} 79. Rxh2 {[%clk 0:00:26]}  Re6 {[%clk 0:00:42]} 1/2-1/2


[Site "http://www.Chess.com"]

[Event "FIDE World Rapid Chess Championship 2021"]
[White "Suleymanli, Aydin"]
[Black "Alonso Rosell, Alvar"]
[WhiteFideId "13413937"]
[BlackFideId "2270544"]
[WhiteElo "2202"]
[BlackElo "2571"]
[Result "1-0"]
[Round "07"]
[TimeControl "900+10"]
[Date "2021.12.27"]
[WhiteClock "0:07:11"]
[BlackClock "0:01:06"]

1. d4 {[%clk 0:15:00]}  Nf6 {[%clk 0:15:00]} 2. c4 {[%clk 0:14:43]}  e6 {[%clk 0:15:28]} 3. Nf3 {[%clk 0:14:43]}  d5 {[%clk 0:15:28]} 4. Nc3 {[%clk 0:14:43]}  a6 {[%clk 0:15:28]} 5. cxd5 {[%clk 0:14:43]}  exd5 {[%clk 0:15:28]} 6. Bg5 {[%clk 0:14:43]}  Be6 {[%clk 0:15:28]} 7. Qb3 {[%clk 0:14:43]}  b5 {[%clk 0:15:28]} 8. Bxf6 {[%clk 0:14:46]}  Qxf6 {[%clk 0:13:51]} 9. a4 {[%clk 0:14:46]}  b4 {[%clk 0:13:51]} 10. Nxd5 {[%clk 0:14:46]}  Qd8 {[%clk 0:12:02]} 11. e4 {[%clk 0:14:17]}  c6 {[%clk 0:12:02]} 12. Qe3 {[%clk 0:14:17]}  cxd5 {[%clk 0:12:02]} 13. exd5 {[%clk 0:14:17]}  Qxd5 {[%clk 0:09:36]} 14. Rc1 {[%clk 0:14:44]}  Be7 {[%clk 0:09:36]} 15. Bd3 {[%clk 0:14:44]}  Qd6 {[%clk 0:07:51]} 16. Be4 {[%clk 0:14:38]}  Ra7 {[%clk 0:07:51]} 17. d5 {[%clk 0:14:38]}  Rc7 {[%clk 0:07:51]} 18. Rxc7 {[%clk 0:14:38]}  Qxc7 {[%clk 0:07:51]} 19. dxe6 {[%clk 0:14:38]}  fxe6 {[%clk 0:07:51]} 20. O-O {[%clk 0:14:38]}  O-O {[%clk 0:07:51]} 21. Bb1 {[%clk 0:14:38]}  Qd6 {[%clk 0:07:03]} 22. Ba2 {[%clk 0:13:35]}  Kh8 {[%clk 0:07:03]} 23. Nd4 {[%clk 0:13:41]}  Bg5 {[%clk 0:05:57]} 24. Qe4 {[%clk 0:13:41]}  Bf6 {[%clk 0:05:57]} 25. Nxe6 {[%clk 0:13:41]}  Rc8 {[%clk 0:04:42]} 26. Qg4 {[%clk 0:11:21]}  Nd7 {[%clk 0:04:42]} 27. Nf4 {[%clk 0:08:52]}  Qe7 {[%clk 0:02:07]} 28. Qh3 {[%clk 0:08:52]}  Qe8 {[%clk 0:02:07]} 29. Bb1 {[%clk 0:07:11]}  Nf8 {[%clk 0:01:06]} 30. Ng6+ {[%clk 0:07:11]} 1-0


[Site "http://www.Chess.com"]

[Event "FIDE World Rapid Chess Championship 2021"]
[White "Mitrabha, Guha"]
[Black "Jumabayev, Rinat"]
[WhiteFideId "5057000"]
[BlackFideId "13702661"]
[WhiteElo "2107"]
[BlackElo "2562"]
[Result "1-0"]
[Round "07"]
[TimeControl "900+10"]
[Date "2021.12.27"]
[WhiteClock "0:00:14"]
[BlackClock "0:00:35"]

1. d4 {[%clk 0:15:00]}  Nf6 {[%clk 0:15:00]} 2. c4 {[%clk 0:15:00]}  e6 {[%clk 0:15:00]} 3. g3 {[%clk 0:15:00]}  Bb4+ {[%clk 0:15:00]} 4. Nd2 {[%clk 0:15:00]}  d5 {[%clk 0:15:00]} 5. Bg2 {[%clk 0:15:00]}  O-O {[%clk 0:15:00]} 6. Nf3 {[%clk 0:15:00]}  b6 {[%clk 0:15:00]} 7. O-O {[%clk 0:15:00]}  Bb7 {[%clk 0:15:32]} 8. a3 {[%clk 0:16:05]}  Be7 {[%clk 0:15:32]} 9. cxd5 {[%clk 0:16:05]}  exd5 {[%clk 0:15:32]} 10. b4 {[%clk 0:16:05]}  c6 {[%clk 0:15:32]} 11. Ne5 {[%clk 0:16:05]}  a5 {[%clk 0:15:32]} 12. bxa5 {[%clk 0:16:05]}  Rxa5 {[%clk 0:15:32]} 13. Nb3 {[%clk 0:14:32]}  Ra7 {[%clk 0:15:20]} 14. a4 {[%clk 0:14:32]}  Nbd7 {[%clk 0:15:20]} 15. Bd2 {[%clk 0:14:32]}  Nxe5 {[%clk 0:15:09]} 16. dxe5 {[%clk 0:14:02]}  Ne4 {[%clk 0:15:09]} 17. Bxe4 {[%clk 0:14:02]}  dxe4 {[%clk 0:15:09]} 18. a5 {[%clk 0:14:02]}  c5 {[%clk 0:13:05]} 19. Be3 {[%clk 0:13:20]}  bxa5 {[%clk 0:11:05]} 20. Nxc5 {[%clk 0:13:00]}  Qa8 {[%clk 0:09:03]} 21. e6 {[%clk 0:12:56]}  Rd8 {[%clk 0:05:43]} 22. exf7+ {[%clk 0:12:56]}  Kxf7 {[%clk 0:05:43]} 23. Qc2 {[%clk 0:12:56]}  Bd5 {[%clk 0:05:39]} 24. Rfc1 {[%clk 0:09:49]}  Rc8 {[%clk 0:05:39]} 25. Qd2 {[%clk 0:07:56]}  a4 {[%clk 0:04:53]} 26. Bd4 {[%clk 0:07:46]}  Kg8 {[%clk 0:03:58]} 27. Rc3 {[%clk 0:05:32]}  a3 {[%clk 0:01:34]} 28. Nxe4 {[%clk 0:05:32]}  Rxc3 {[%clk 0:01:34]} 29. Nxc3 {[%clk 0:01:10]}  Rd7 {[%clk 0:01:31]} 30. Qf4 {[%clk 0:01:10]}  Bf8 {[%clk 0:01:31]} 31. Nxd5 {[%clk 0:01:10]}  Qxd5 {[%clk 0:01:31]} 32. e3 {[%clk 0:01:10]}  Rb7 {[%clk 0:01:31]} 33. Qe5 {[%clk 0:00:36]}  Qf3 {[%clk 0:00:21]} 34. Qf4 {[%clk 0:00:36]}  Qd5 {[%clk 0:00:21]} 35. Qe5 {[%clk 0:00:36]}  Qc4 {[%clk 0:00:21]} 36. Qe4 {[%clk 0:00:36]}  Re7 {[%clk 0:00:21]} 37. Qb1 {[%clk 0:00:36]}  Rf7 {[%clk 0:00:21]} 38. Qa2 {[%clk 0:00:36]}  Qc6 {[%clk 0:00:21]} 39. Rb1 {[%clk 0:00:36]}  h5 {[%clk 0:00:21]} 40. h4 {[%clk 0:00:36]}  Qf3 {[%clk 0:00:21]} 41. Rb8 {[%clk 0:00:36]}  Kh7 {[%clk 0:00:21]} 42. Qc2+ {[%clk 0:00:15]}  g6 {[%clk 0:00:17]} 43. Rb6 {[%clk 0:00:15]}  Qg4 {[%clk 0:00:17]} 44. Kg2 {[%clk 0:00:15]}  Qf3+ {[%clk 0:00:17]} 45. Kg1 {[%clk 0:00:15]}  Qg4 {[%clk 0:00:17]} 46. Ra6 {[%clk 0:00:15]}  Be7 {[%clk 0:00:17]} 47. Ra7 {[%clk 0:00:15]}  Qf3 {[%clk 0:00:17]} 48. e4 {[%clk 0:00:15]}  Bf8 {[%clk 0:00:17]} 49. Ra6 {[%clk 0:00:15]}  Rd7 {[%clk 0:00:17]} 50. Rf6 {[%clk 0:00:15]}  Qg4 {[%clk 0:00:35]} 51. Rxf8 {[%clk 0:00:14]}  Rxd4 {[%clk 0:00:35]} 52. Qc7+ {[%clk 0:00:14]}  Rd7 {[%clk 0:00:35]} 53. Qe5 {[%clk 0:00:14]}  Rg7 {[%clk 0:00:35]} 54. Qb8 {[%clk 0:00:14]} 1-0


[Site "http://www.Chess.com"]

[Event "FIDE World Rapid Chess Championship 2021"]
[White "Samunenkov, Ihor"]
[Black "Corrales Jimenez, Fidel"]
[WhiteFideId "14187086"]
[BlackFideId "3506690"]
[WhiteElo "2259"]
[BlackElo "2561"]
[Result "1/2-1/2"]
[Round "07"]
[TimeControl "900+10"]
[Date "2021.12.27"]
[WhiteClock "0:00:16"]
[BlackClock "0:00:29"]

1. d4 {[%clk 0:15:00]}  Nf6 {[%clk 0:15:00]} 2. g3 {[%clk 0:15:00]}  g6 {[%clk 0:15:00]} 3. Bg2 {[%clk 0:15:00]}  d5 {[%clk 0:15:00]} 4. Nf3 {[%clk 0:15:00]}  Bg7 {[%clk 0:15:00]} 5. O-O {[%clk 0:15:00]}  O-O {[%clk 0:15:00]} 6. c4 {[%clk 0:15:00]}  Nc6 {[%clk 0:15:00]} 7. cxd5 {[%clk 0:15:00]}  Nxd5 {[%clk 0:15:00]} 8. Nc3 {[%clk 0:16:05]}  Nb6 {[%clk 0:16:13]} 9. e3 {[%clk 0:16:05]}  Re8 {[%clk 0:16:13]} 10. h3 {[%clk 0:16:05]}  a5 {[%clk 0:16:13]} 11. d5 {[%clk 0:16:05]}  Nb4 {[%clk 0:15:44]} 12. e4 {[%clk 0:16:05]}  c6 {[%clk 0:13:59]} 13. a3 {[%clk 0:12:42]}  Na6 {[%clk 0:13:59]} 14. dxc6 {[%clk 0:10:16]}  bxc6 {[%clk 0:14:08]} 15. Qc2 {[%clk 0:10:16]}  Qc7 {[%clk 0:13:51]} 16. Rd1 {[%clk 0:08:45]}  Rb8 {[%clk 0:13:51]} 17. Rb1 {[%clk 0:08:45]}  Be6 {[%clk 0:12:32]} 18. Bf4 {[%clk 0:07:19]}  Qb7 {[%clk 0:12:32]} 19. Bxb8 {[%clk 0:07:19]}  Rxb8 {[%clk 0:12:32]} 20. Nd4 {[%clk 0:07:19]}  Bd7 {[%clk 0:12:32]} 21. Nce2 {[%clk 0:06:04]}  c5 {[%clk 0:11:32]} 22. Nf3 {[%clk 0:06:04]}  c4 {[%clk 0:11:32]} 23. Nc3 {[%clk 0:06:04]}  Nc5 {[%clk 0:11:32]} 24. Nd2 {[%clk 0:03:43]}  e6 {[%clk 0:11:46]} 25. e5 {[%clk 0:03:28]}  Qc7 {[%clk 0:10:30]} 26. f4 {[%clk 0:03:28]}  g5 {[%clk 0:10:30]} 27. Nce4 {[%clk 0:03:28]}  gxf4 {[%clk 0:10:30]} 28. gxf4 {[%clk 0:03:28]}  Nd3 {[%clk 0:09:22]} 29. Rf1 {[%clk 0:01:55]}  Nd5 {[%clk 0:09:22]} 30. Nxc4 {[%clk 0:02:04]}  N5xf4 {[%clk 0:06:53]} 31. b3 {[%clk 0:02:04]}  a4 {[%clk 0:06:31]} 32. Kh1 {[%clk 0:00:49]}  Bxe5 {[%clk 0:06:31]} 33. Bf3 {[%clk 0:00:49]}  Bd4 {[%clk 0:04:31]} 34. Rfd1 {[%clk 0:00:14]}  axb3 {[%clk 0:02:29]} 35. Rxb3 {[%clk 0:00:12]}  Rxb3 {[%clk 0:02:29]} 36. Qxb3 {[%clk 0:00:12]}  f5 {[%clk 0:02:29]} 37. Rxd3 {[%clk 0:00:12]}  Nxd3 {[%clk 0:02:29]} 38. Qxd3 {[%clk 0:00:12]}  fxe4 {[%clk 0:02:29]} 39. Qxd4 {[%clk 0:00:12]}  exf3 {[%clk 0:02:29]} 40. Qg4+ {[%clk 0:00:12]}  Kh8 {[%clk 0:02:29]} 41. Qd4+ {[%clk 0:00:12]}  Kg8 {[%clk 0:02:29]} 42. Qg4+ {[%clk 0:00:12]}  Kf8 {[%clk 0:02:29]} 43. Qxf3+ {[%clk 0:00:12]}  Ke7 {[%clk 0:02:29]} 44. Qc3 {[%clk 0:00:16]}  Bc6+ {[%clk 0:01:10]} 45. Kg1 {[%clk 0:00:16]}  Qf4 {[%clk 0:01:10]} 46. Qb4+ {[%clk 0:00:16]}  Kd8 {[%clk 0:01:10]} 47. Qd6+ {[%clk 0:00:16]}  Qxd6 {[%clk 0:01:10]} 48. Nxd6 {[%clk 0:00:16]}  Kd7 {[%clk 0:01:10]} 49. Nc4 {[%clk 0:00:16]}  Bb5 {[%clk 0:01:10]} 50. Nd2 {[%clk 0:00:16]}  Kd6 {[%clk 0:01:10]} 51. Kf2 {[%clk 0:00:16]}  Ke5 {[%clk 0:01:10]} 52. Ke3 {[%clk 0:00:16]}  Kf5 {[%clk 0:00:29]} 1/2-1/2


[Site "http://www.Chess.com"]